[Event "IV Zagreb Open 2019"]
[Site "Zagreb"]
[Date "2019.12.13"]
[Round "8.3"]
[White "Kotronias, Vasilios"]
[Black "Strikovic, Aleksa"]
[Result "1-0"]
[ECO "C41"]
[WhiteElo "2506"]
[BlackElo "2468"]
[Annotator "ChessBase"]
[PlyCount "89"]
[EventDate "2019.12.07"]
[EventType "swiss"]
[EventCountry "CRO"]
[SourceTitle "playchess.com"]
[Source "ChessBase"]
[SourceQuality "1"]
[TimeControl "40/5400+30:1800+30"]

1. e4 {[%emt 0:00:00]} d6 {[%emt 0:00:00]} 2. d4 {[%emt 0:00:04]} Nf6 {[%emt 0:00:00]} 3. Nc3 {[%emt 0:00:07]} e5 {[%emt 0:00:00]} 4. Nf3 {[%emt 0:00:03]} Nbd7 {[%emt 0:00:00]} 5. Bc4 {[%emt 0:00:05]} Be7 {[%emt 0:00:01]} 6. O-O {[%emt 0:00:14]} O-O {[%emt 0:01:05]} 7. a4 {[%emt 0:04:33]} a5 {[%emt 0:00:34]} 8. Re1 {[%emt 0:00:15]} c6 {[%emt 0:00:07]} 9. h3 {[%emt 0:00:59]} Nb6 {[%emt 0:00:16]} 10. Ba2 {[%emt 0:01:12]} Nfd7 {[%emt 0:00:08]} 11. Be3 {[%emt 0:09:55]} exd4 {[%emt 0:00:06]} 12. Bxd4 {[%emt 0:02:47]} Nc5 {[%emt 0:00:07]} 13. Bxc5 {[%emt 0:00:35]} dxc5 {[%emt 0:00:05]} 14. Qe2 {[%emt 0:02:35]} Qd6 {[%emt 0:00:07]} 15. Qe3 {[%emt 0:02:04]} Qg6 {[%emt 0:12:47]} 16. Ne5 {[%emt 0:04:54]} Qf6 {[%emt 0:00:23]} 17. Nc4 {[%emt 0:04:51]} Nxc4 {[%emt 0:04:12]} 18. Bxc4 {[%emt 0:00:05]} Be6 {[%emt 0:00:21]} 19. e5 {[%emt 0:10:46]} Qg6 {[%emt 0:04:51]} 20. Bd3 {[%emt 0:05:07]} Bf5 {[%emt 0:05:44]} 21. Bxf5 {[%emt 0:03:21]} Qxf5 {[%emt 0:00:02]} 22. Qe4 {[%emt 0:01:02]} Qxe4 {[%emt 0:00:42]} 23. Nxe4 {[%emt 0:00:11]} Rfd8 {[%emt 0:01:29]} 24. Rad1 {[%emt 0:10:25]} Rd5 {[%emt 0:00:53]} 25. Rxd5 {[%emt 0:00:58]} cxd5 {[%emt 0:00:02]} 26. Nd6 {[%emt 0:00:34]} Kf8 {[%emt 0:04:37]} 27. Nb5 {[%emt 0:04:47]} c4 {[%emt 0:03:54]} 28. Rd1 {[%emt 0:00:19]} Rd8 {[%emt 0:00:06]} 29. Kf1 {[%emt 0:01:46]} Bc5 {[%emt 0:00:09]} 30. f4 {[%emt 0:13:59]} Ke7 {[%emt 0:06:23]} 31. Ke2 {[%emt 0:00:07]} f6 {[%emt 0:22:51]} 32. exf6+ {[%emt 0:00:07]} Kxf6 {[%emt 0:00:09]} 33. Kf3 {[%emt 0:00:22]} Rd7 {[%emt 0:01:48]} 34. Nc3 {[%emt 0:03:14]} Ke6 {[%emt 0:00:07]} 35. Re1+ {[%emt 0:00:10]} Kf7 {[%emt 0:08:31]} 36. Re5 {[%emt 0:00:48]} Bd4 {[%emt 0:02:08]} 37. Rxd5 {[%emt 0:00:05]} Rxd5 {[%emt 0:00:07]} 38. Nxd5 {[%emt 0:00:03]} Bxb2 {[%emt 0:00:04]} 39. Nb6 {[%emt 0:01:37]} c3 {[%emt 0:01:58]} 40. Nc4 {[%emt 0:00:00]} b5 {[%emt 0:00:00]} 41. axb5 {[%emt 0:01:42]} a4 {[%emt 0:00:33]} 42. b6 {[%emt 0:00:14]} a3 {[%emt 0:00:06]} 43. b7 {[%emt 0:00:15]} a2 {[%emt 0:00:16]} 44. b8=Q {[%emt 0:00:14]} a1=Q {[%emt 0:00:08]} 45. Ne5+ {[%emt 0:00:32]} 1-0

[Event "IV Zagreb Open 2019"]
[Site "Zagreb"]
[Date "2019.12.13"]
[Round "8.4"]
[White "Livaic, Leon"]
[Black "Nguyen, Piotr"]
[Result "1-0"]
[ECO "A42"]
[WhiteElo "2505"]
[BlackElo "2413"]
[Annotator "ChessBase"]
[PlyCount "81"]
[EventDate "2019.12.07"]
[EventType "swiss"]
[EventCountry "CRO"]
[SourceTitle "playchess.com"]
[Source "ChessBase"]
[SourceQuality "1"]
[TimeControl "40/5400+30:1800+30"]

1. d4 {[%emt 0:01:00]} g6 {[%emt 0:00:00]} 2. c4 {[%emt 0:00:10]} Bg7 {[%emt 0:00:00]} 3. Nc3 {[%emt 0:01:16]} d6 {[%emt 0:02:14]} 4. e4 {[%emt 0:00:19]} e5 {[%emt 0:00:19]} 5. Nge2 {[%emt 0:01:38]} Nd7 {[%emt 0:00:46]} 6. d5 {[%emt 0:04:06]} Ngf6 {[%emt 0:03:12]} 7. f3 {[%emt 0:02:28]} a5 {[%emt 0:04:40]} 8. Be3 {[%emt 0:00:24]} Nc5 {[%emt 0:02:05]} 9. Qd2 {[%emt 0:02:08]} Nfd7 {[%emt 0:03:26]} 10. h4 {[%emt 0:03:24]} f5 {[%emt 0:07:13]} 11. exf5 {[%emt 0:08:20]} gxf5 {[%emt 0:00:09]} 12. Ng3 {[%emt 0:10:27]} O-O {[%emt 0:05:30]} 13. Nh5 {[%emt 0:01:34]} f4 {[%emt 0:04:10]} 14. Bf2 {[%emt 0:03:39]} Bh8 {[%emt 0:17:47]} 15. Be2 {[%emt 0:01:09]} Qe8 {[%emt 0:02:50]} 16. g4 {[%emt 0:01:42]} e4 {[%emt 0:00:40]} 17. Nxe4 {[%emt 0:03:59]} Nxe4 {[%emt 0:02:33]} 18. fxe4 {[%emt 0:00:04]} Qxe4 {[%emt 0:02:13]} 19. O-O-O {[%emt 0:00:30]} Ne5 {[%emt 0:05:32]} 20. Rhe1 {[%emt 0:08:57]} a4 {[%emt 0:11:04]} 21. Bd3 {[%emt 0:01:44]} Nxd3+ {[%emt 0:02:43]} 22. Qxd3 {[%emt 0:01:00]} Qxd3 {[%emt 0:00:17]} 23. Rxd3 {[%emt 0:00:06]} b5 {[%emt 0:03:16]} 24. c5 {[%emt 0:10:34]} b4 {[%emt 0:02:05]} 25. c6 {[%emt 0:06:34]} Ra5 {[%emt 0:06:03]} 26. Rdd1 {[%emt 0:00:37]} a3 {[%emt 0:02:13]} 27. b3 {[%emt 0:00:37]} Bb2+ {[%emt 0:03:45]} 28. Kc2 {[%emt 0:00:14]} Kh8 {[%emt 0:00:43]} 29. Bd4+ {[%emt 0:04:22]} Bxd4 {[%emt 0:00:05]} 30. Rxd4 {[%emt 0:00:04]} f3 {[%emt 0:04:50]} 31. Rf4 {[%emt 0:04:29]} Rc5+ {[%emt 0:02:31]} 32. Kb1 {[%emt 0:00:06]} Kg8 {[%emt 0:00:09]} 33. Nf6+ {[%emt 0:01:26]} Kg7 {[%emt 0:00:54]} 34. g5 {[%emt 0:01:33]} Kg6 {[%emt 0:00:32]} 35. Rxf3 {[%emt 0:00:53]} Bf5+ {[%emt 0:00:17]} 36. Ka1 {[%emt 0:02:46]} Be4 {[%emt 0:00:29]} 37. Rf4 {[%emt 0:00:29]} Bg2 {[%emt 0:00:40]} 38. Kb1 {[%emt 0:04:28]} Bh3 {[%emt 0:00:09]} 39. Rg1 {[%emt 0:03:37]} Bf5+ {[%emt 0:00:32]} 40. Ka1 {[%emt 0:00:00]} h5 {[%emt 0:00:00]} 41. Nd7 {[%emt 0:03:43]} 1-0

[Event "IV Zagreb Open 2019"]
[Site "Zagreb"]
[Date "2019.12.13"]
[Round "8.7"]
[White "Rudolf, Michal"]
[Black "Janzelj, Tim"]
[Result "1-0"]
[ECO "A80"]
[WhiteElo "2328"]
[BlackElo "2446"]
[Annotator "NA"]
[PlyCount "119"]
[EventDate "2019.12.07"]
[EventType "swiss"]
[EventCountry "CRO"]
[SourceTitle "playchess.com"]
[Source "ChessBase"]
[SourceQuality "1"]
[TimeControl "40/5400+30:1800+30"]

1. d4 {[%emt 0:00:00]} f5 {[%emt 0:00:00]} 2. Nc3 {[%emt 0:01:26]} Nf6 {[%emt 0:00:09]} 3. Bg5 {[%emt 0:00:19]} d5 {[%emt 0:00:08]} 4. Bxf6 {[%emt 0:00:07]} exf6 {[%emt 0:00:07]} 5. e3 {[%emt 0:00:18]} Be6 {[%emt 0:00:10]} 6. Nge2 {[%emt 0:03:12]} Qd7 {[%emt 0:03:41]} 7. Nf4 {[%emt 0:01:50]} Bf7 {[%emt 0:00:19]} 8. Qf3 {[%emt 0:04:26]} c6 {[%emt 0:00:16]} 9. Bd3 {[%emt 0:02:31]} h5 {[%emt 0:03:36]} 10. h3 {[%emt 0:04:48]} h4 {[%emt 0:10:45]} 11. O-O-O {[%emt 0:05:46]} Na6 {[%emt 0:13:37]} 12. g4 {[%emt 0:08:51]} hxg3 {[%emt 0:00:18]} 13. fxg3 {[%emt 0:00:44]} Nb4 {[%emt 0:05:05]} 14. Be2 {[%emt 0:01:30]} g5 {[%emt 0:00:57]} 15. a3 {[%emt 0:06:28]} gxf4 {[%emt 0:01:54]} 16. axb4 {[%emt 0:00:12]} fxg3 {[%emt 0:00:37]} 17. Qxg3 {[%emt 0:04:37]} Bxb4 {[%emt 0:05:01]} 18. Rdf1 {[%emt 0:10:45]} Be6 {[%emt 0:06:59]} 19. Bd3 {[%emt 0:00:28]} O-O-O {[%emt 0:11:32]} 20. Qf3 {[%emt 0:02:10]} Bxc3 {[%emt 0:14:21]} 21. bxc3 {[%emt 0:00:07]} Rde8 {[%emt 0:02:55]} 22. h4 {[%emt 0:00:40]} Rh6 {[%emt 0:01:13]} 23. h5 {[%emt 0:02:33]} Rg8 {[%emt 0:01:24]} 24. Bxf5 {[%emt 0:05:53]} Bxf5 {[%emt 0:00:09]} 25. Qxf5 {[%emt 0:00:05]} Qxf5 {[%emt 0:01:33]} 26. Rxf5 {[%emt 0:00:06]} Kd7 {[%emt 0:00:08]} 27. Rf2 {[%emt 0:05:13]} Rg5 {[%emt 0:00:19]} 28. Kd2 {[%emt 0:00:55]} f5 {[%emt 0:03:16]} 29. Rfh2 {[%emt 0:00:51]} a5 {[%emt 0:00:18]} 30. Ke2 {[%emt 0:04:21]} Rg3 {[%emt 0:02:56]} 31. Kf2 {[%emt 0:01:08]} Rg5 {[%emt 0:01:31]} 32. Kf3 {[%emt 0:04:20]} Ke6 {[%emt 0:00:01]} 33. Rh4 {[%emt 0:01:54]} b5 {[%emt 0:00:59]} 34. R4h3 {[%emt 0:00:11]} Kf6 {[%emt 0:00:16]} 35. Rh4 {[%emt 0:01:09]} a4 {[%emt 0:00:09]} 36. R4h3 {[%emt 0:01:33]} Rg4 {[%emt 0:00:14]} 37. R3h2 {[%emt 0:00:47]} Kg5 {[%emt 0:00:50]} 38. Rh3 {[%emt 0:00:12]} Kf6 {[%emt 0:06:46]} 39. R3h2 {[%emt 0:00:13]} Rg8 {[%emt 0:00:02]} 40. Kf4 {[%emt 0:00:00]} Rg7 {[%emt 0:00:00]} 41. Ra1 {[%emt 0:05:27]} Rg4+ {[%emt 0:10:10]} 42. Kf3 {[%emt 0:00:07]} Kg5 {[%emt 0:04:50]} 43. Rah1 {[%emt 0:00:18]} a3 {[%emt 0:12:00]} 44. Ra1 {[%emt 0:02:46]} f4 {[%emt 0:00:47]} 45. exf4+ {[%emt 0:01:24]} Rxf4+ {[%emt 0:06:10]} 46. Ke3 {[%emt 0:00:22]} Re6+ {[%emt 0:00:31]} 47. Kd2 {[%emt 0:02:25]} Kh6 {[%emt 0:01:31]} 48. Rxa3 {[%emt 0:01:29]} b4 {[%emt 0:01:03]} 49. Ra6 {[%emt 0:02:32]} Ref6 {[%emt 0:00:57]} 50. Rb6 {[%emt 0:00:42]} Rf2+ {[%emt 0:01:35]} 51. Rxf2 {[%emt 0:00:06]} Rxf2+ {[%emt 0:00:00]} 52. Kc1 {[%emt 0:01:27]} bxc3 {[%emt 0:00:39]} 53. Rxc6+ {[%emt 0:00:06]} Kxh5 {[%emt 0:00:02]} 54. Rxc3 {[%emt 0:00:07]} Kg6 {[%emt 0:01:00]} 55. Re3 {[%emt 0:03:18]} Rf4 {[%emt 0:01:09]} 56. c3 {[%emt 0:00:09]} Rf1+ {[%emt 0:00:27]} 57. Kb2 {[%emt 0:00:22]} Kf6 {[%emt 0:00:15]} 58. Re5 {[%emt 0:00:24]} Rf5 {[%emt 0:00:11]} 59. Rxf5+ {[%emt 0:00:39]} Kxf5 {[%emt 0:00:04]} 60. Kb3 {[%emt 0:00:09]} 1-0

[Event "IV Zagreb Open 2019"]
[Site "Zagreb"]
[Date "2019.12.13"]
[Round "8.8"]
[White "Smith, Bryan"]
[Black "Pavic, Filip"]
[Result "1-0"]
[ECO "B12"]
[WhiteElo "2428"]
[BlackElo "2238"]
[Annotator "NA"]
[PlyCount "53"]
[EventDate "2019.12.07"]
[EventType "swiss"]
[EventCountry "CRO"]
[SourceTitle "playchess.com"]
[Source "ChessBase"]
[SourceQuality "1"]
[TimeControl "40/5400+30:1800+30"]

1. e4 {[%emt 0:00:34]} c6 {[%emt 0:00:00]} 2. d4 {[%emt 0:00:22]} d5 {[%emt 0:00:00]} 3. e5 {[%emt 0:00:34]} Bf5 {[%emt 0:00:06]} 4. h4 {[%emt 0:00:07]} h5 {[%emt 0:00:26]} 5. Bd3 {[%emt 0:00:08]} Bxd3 {[%emt 0:00:38]} 6. Qxd3 {[%emt 0:00:06]} e6 {[%emt 0:00:29]} 7. Bg5 {[%emt 0:00:14]} Qa5+ {[%emt 0:00:07]} 8. Nd2 {[%emt 0:00:13]} Qa6 {[%emt 0:00:21]} 9. c4 {[%emt 0:00:44]} Bb4 {[%emt 0:02:07]} 10. b3 {[%emt 0:02:01]} Ne7 {[%emt 0:05:47]} 11. Ngf3 {[%emt 0:06:38]} Nf5 {[%emt 0:00:39]} 12. O-O {[%emt 0:00:47]} Nd7 {[%emt 0:02:33]} 13. a3 {[%emt 0:04:42]} Be7 {[%emt 0:05:51]} 14. Bxe7 {[%emt 0:01:48]} Kxe7 {[%emt 0:04:15]} 15. Rfd1 {[%emt 0:10:18]} Rhd8 {[%emt 0:05:58]} 16. Nf1 {[%emt 0:04:51]} dxc4 {[%emt 0:08:05]} 17. bxc4 {[%emt 0:00:46]} Nb6 {[%emt 0:09:14]} 18. Rac1 {[%emt 0:12:07]} Kf8 {[%emt 0:15:38]} 19. Ne3 {[%emt 0:07:30]} g6 {[%emt 0:12:19]} 20. Nxf5 {[%emt 0:00:52]} gxf5 {[%emt 0:00:13]} 21. Qe3 {[%emt 0:03:42]} Nxc4 {[%emt 0:02:33]} 22. Qh6+ {[%emt 0:00:23]} Ke8 {[%emt 0:00:29]} 23. Ng5 {[%emt 0:03:14]} Kd7 {[%emt 0:02:36]} 24. Qxh5 {[%emt 0:08:39]} Re8 {[%emt 0:01:30]} 25. Qxf7+ {[%emt 0:02:30]} Re7 {[%emt 0:00:06]} 26. Qf6 {[%emt 0:04:01]} b5 {[%emt 0:00:09]} 27. d5 {[%emt 0:00:47]} 1-0

[Event "IV Zagreb Open 2019"]
[Site "Zagreb"]
[Date "2019.12.13"]
[Round "8.9"]
[White "Mravunac, Damir"]
[Black "Ivekovic, Bozidar"]
[Result "0-1"]
[ECO "A02"]
[WhiteElo "2104"]
[BlackElo "2406"]
[Annotator "NA"]
[PlyCount "70"]
[EventDate "2019.12.07"]
[EventType "swiss"]
[EventCountry "CRO"]
[SourceTitle "playchess.com"]
[Source "ChessBase"]
[SourceQuality "1"]
[TimeControl "40/5400+30:1800+30"]

1. f4 {[%emt 0:08:11]} e5 {[%emt 0:07:32]} 2. fxe5 {[%emt 0:00:47]} d6 {[%emt 0:00:04]} 3. exd6 {[%emt 0:00:09]} Bxd6 {[%emt 0:00:04]} 4. Nf3 {[%emt 0:00:07]} g5 {[%emt 0:00:09]} 5. d4 {[%emt 0:01:18]} g4 {[%emt 0:06:42]} 6. Ng5 {[%emt 0:00:17]} f5 {[%emt 0:08:49]} 7. e4 {[%emt 0:00:28]} h6 {[%emt 0:04:33]} 8. e5 {[%emt 0:02:05]} Be7 {[%emt 0:11:49]} 9. Nh3 {[%emt 0:04:20]} gxh3 {[%emt 0:00:06]} 10. Qh5+ {[%emt 0:00:15]} Kf8 {[%emt 0:00:07]} 11. Bc4 {[%emt 0:00:13]} Qe8 {[%emt 0:00:28]} 12. Qxh3 {[%emt 0:00:14]} Nc6 {[%emt 0:10:10]} 13. c3 {[%emt 0:00:50]} Kg7 {[%emt 0:01:12]} 14. Bf4 {[%emt 0:00:36]} Bg5 {[%emt 0:01:05]} 15. O-O {[%emt 0:02:54]} Nge7 {[%emt 0:03:04]} 16. Nd2 {[%emt 0:03:21]} Ng6 {[%emt 0:02:11]} 17. g3 {[%emt 0:00:50]} Nce7 {[%emt 0:04:39]} 18. Qg2 {[%emt 0:01:43]} Rh7 {[%emt 0:04:55]} 19. Rae1 {[%emt 0:04:39]} Kh8 {[%emt 0:00:51]} 20. Bxg5 {[%emt 0:00:34]} hxg5 {[%emt 0:00:07]} 21. Nf3 {[%emt 0:00:08]} g4 {[%emt 0:02:21]} 22. Ng5 {[%emt 0:02:15]} Rh5 {[%emt 0:02:37]} 23. Qd2 {[%emt 0:00:18]} b5 {[%emt 0:04:25]} 24. Bb3 {[%emt 0:04:18]} Bb7 {[%emt 0:02:38]} 25. d5 {[%emt 0:01:22]} Bxd5 {[%emt 0:02:26]} 26. Bxd5 {[%emt 0:00:44]} Rd8 {[%emt 0:00:02]} 27. c4 {[%emt 0:01:20]} bxc4 {[%emt 0:00:13]} 28. e6 {[%emt 0:02:12]} Rxd5 {[%emt 0:00:13]} 29. Qc3+ {[%emt 0:00:40]} Kg8 {[%emt 0:00:10]} 30. Nf7 {[%emt 0:01:25]} Qc6 {[%emt 0:01:30]} 31. Rf2 {[%emt 0:00:37]} Rd3 {[%emt 0:01:08]} 32. Qf6 {[%emt 0:01:01]} Rxg3+ {[%emt 0:00:09]} 33. Kf1 {[%emt 0:00:07]} Qh1+ {[%emt 0:01:38]} 34. Ke2 {[%emt 0:01:08]} Re3+ {[%emt 0:00:26]} 35. Kxe3 {[%emt 0:00:19]} Qxe1+ {[%emt 0:00:09]} 0-1

[Event "IV Zagreb Open 2019"]
[Site "Zagreb"]
[Date "2019.12.13"]
[Round "8.10"]
[White "Jurkovic, Ante"]
[Black "Tica, Sven"]
[Result "1-0"]
[ECO "B10"]
[WhiteElo "2274"]
[BlackElo "2396"]
[Annotator "NA"]
[PlyCount "81"]
[EventDate "2019.12.07"]
[EventType "swiss"]
[EventCountry "CRO"]
[SourceTitle "playchess.com"]
[Source "ChessBase"]
[SourceQuality "1"]
[TimeControl "40/5400+30:1800+30"]

1. e4 {[%emt 0:00:00]} c6 {[%emt 0:00:00]} 2. Nf3 {[%emt 0:00:02]} d5 {[%emt 0:00:00]} 3. d3 {[%emt 0:00:22]} g6 {[%emt 0:00:16]} 4. Nbd2 {[%emt 0:00:56]} Bg7 {[%emt 0:00:07]} 5. g3 {[%emt 0:01:12]} e5 {[%emt 0:00:07]} 6. Bg2 {[%emt 0:00:09]} Ne7 {[%emt 0:00:05]} 7. O-O {[%emt 0:02:10]} O-O {[%emt 0:00:06]} 8. Re1 {[%emt 0:02:53]} d4 {[%emt 0:02:22]} 9. Nb3 {[%emt 0:08:21]} a5 {[%emt 0:06:08]} 10. a4 {[%emt 0:01:27]} Na6 {[%emt 0:07:19]} 11. c3 {[%emt 0:05:45]} c5 {[%emt 0:02:24]} 12. Qc2 {[%emt 0:09:35]} Nc6 {[%emt 0:08:17]} 13. Nbd2 {[%emt 0:06:53]} Be6 {[%emt 0:05:59]} 14. Nc4 {[%emt 0:01:40]} h6 {[%emt 0:00:18]} 15. Qe2 {[%emt 0:04:50]} Qc7 {[%emt 0:10:50]} 16. Nh4 {[%emt 0:01:20]} Qd8 {[%emt 0:05:55]} 17. Qf1 {[%emt 0:09:34]} Rc8 {[%emt 0:03:01]} 18. Rd1 {[%emt 0:02:36]} Kh7 {[%emt 0:03:05]} 19. Bh3 {[%emt 0:01:39]} Re8 {[%emt 0:03:59]} 20. Bxe6 {[%emt 0:00:57]} Rxe6 {[%emt 0:00:06]} 21. Qh3 {[%emt 0:02:29]} Ne7 {[%emt 0:03:38]} 22. Nf3 {[%emt 0:05:33]} Kg8 {[%emt 0:12:56]} 23. Bxh6 {[%emt 0:00:33]} Qf8 {[%emt 0:00:14]} 24. Bd2 {[%emt 0:01:47]} Bf6 {[%emt 0:02:17]} 25. Qg4 {[%emt 0:05:21]} b6 {[%emt 0:00:30]} 26. h4 {[%emt 0:01:39]} Bg7 {[%emt 0:00:41]} 27. h5 {[%emt 0:02:49]} Rcc6 {[%emt 0:02:59]} 28. h6 {[%emt 0:03:37]} Bxh6 {[%emt 0:00:31]} 29. Nfxe5 {[%emt 0:00:45]} Rc7 {[%emt 0:00:23]} 30. Bxh6 {[%emt 0:01:57]} Qxh6 {[%emt 0:00:07]} 31. Nf3 {[%emt 0:02:45]} f5 {[%emt 0:00:48]} 32. exf5 {[%emt 0:02:48]} Nxf5 {[%emt 0:00:02]} 33. Re1 {[%emt 0:03:50]} Rh7 {[%emt 0:01:09]} 34. Nh4 {[%emt 0:00:54]} Nc7 {[%emt 0:00:23]} 35. Rxe6 {[%emt 0:02:13]} Nxe6 {[%emt 0:00:02]} 36. Qxg6+ {[%emt 0:00:16]} Qxg6 {[%emt 0:00:06]} 37. Nxg6 {[%emt 0:00:10]} dxc3 {[%emt 0:00:11]} 38. bxc3 {[%emt 0:00:15]} Kf7 {[%emt 0:00:12]} 39. Nge5+ {[%emt 0:00:22]} Kf6 {[%emt 0:00:04]} 40. Rb1 {[%emt 0:00:00]} Ne7 {[%emt 0:00:00]} 41. Nd7+ {[%emt 0:03:51]} 1-0

[Event "IV Zagreb Open 2019"]
[Site "Zagreb"]
[Date "2019.12.13"]
[Round "8.11"]
[White "Cvitan, Ognjen"]
[Black "Medic, Mirjana"]
[Result "1-0"]
[ECO "A84"]
[WhiteElo "2488"]
[BlackElo "2190"]
[Annotator "ChessBase"]
[PlyCount "77"]
[EventDate "2019.12.07"]
[EventType "swiss"]
[EventCountry "CRO"]
[SourceTitle "playchess.com"]
[Source "ChessBase"]
[SourceQuality "1"]
[TimeControl "40/5400+30:1800+30"]

1. Nf3 {[%emt 0:01:09]} d5 {[%emt 0:00:00]} 2. d4 {[%emt 0:00:38]} e6 {[%emt 0:01:06]} 3. c4 {[%emt 0:00:14]} c6 {[%emt 0:00:06]} 4. Nc3 {[%emt 0:00:24]} f5 {[%emt 0:02:54]} 5. Bf4 {[%emt 0:05:41]} Nf6 {[%emt 0:00:21]} 6. e3 {[%emt 0:00:11]} Be7 {[%emt 0:00:28]} 7. h3 {[%emt 0:00:48]} O-O {[%emt 0:02:24]} 8. Qc2 {[%emt 0:00:41]} Na6 {[%emt 0:01:18]} 9. Be2 {[%emt 0:04:49]} Ne4 {[%emt 0:00:56]} 10. O-O {[%emt 0:00:42]} Bd7 {[%emt 0:12:12]} 11. Ne5 {[%emt 0:06:20]} Be8 {[%emt 0:12:30]} 12. Nxe4 {[%emt 0:14:28]} fxe4 {[%emt 0:00:29]} 13. cxd5 {[%emt 0:01:14]} cxd5 {[%emt 0:04:15]} 14. Qb3 {[%emt 0:08:16]} Rb8 {[%emt 0:06:42]} 15. f3 {[%emt 0:09:42]} exf3 {[%emt 0:02:27]} 16. Nxf3 {[%emt 0:00:11]} Bd6 {[%emt 0:00:49]} 17. Bxd6 {[%emt 0:01:00]} Qxd6 {[%emt 0:00:03]} 18. Ne5 {[%emt 0:00:06]} Rf6 {[%emt 0:05:51]} 19. a3 {[%emt 0:00:19]} Nc5 {[%emt 0:08:12]} 20. Qb4 {[%emt 0:00:27]} Ne4 {[%emt 0:00:02]} 21. Bd3 {[%emt 0:00:25]} Rxf1+ {[%emt 0:02:56]} 22. Kxf1 {[%emt 0:00:32]} a5 {[%emt 0:04:38]} 23. Qe1 {[%emt 0:01:45]} Bc6 {[%emt 0:05:43]} 24. Kg1 {[%emt 0:00:26]} Nc5 {[%emt 0:01:53]} 25. Bc2 {[%emt 0:03:00]} Nd7 {[%emt 0:02:46]} 26. Nxd7 {[%emt 0:07:38]} Bxd7 {[%emt 0:01:12]} 27. Qxa5 {[%emt 0:00:05]} Qg3 {[%emt 0:00:59]} 28. Qe1 {[%emt 0:00:31]} Qg5 {[%emt 0:00:06]} 29. Kh2 {[%emt 0:02:15]} Rc8 {[%emt 0:01:01]} 30. Bb3 {[%emt 0:02:57]} Bb5 {[%emt 0:00:52]} 31. Rc1 {[%emt 0:00:34]} Rxc1 {[%emt 0:02:25]} 32. Qxc1 {[%emt 0:00:01]} Qd8 {[%emt 0:00:10]} 33. e4 {[%emt 0:02:30]} Bd3 {[%emt 0:00:44]} 34. exd5 {[%emt 0:00:50]} exd5 {[%emt 0:00:35]} 35. Qe3 {[%emt 0:00:11]} Qd6+ {[%emt 0:01:23]} 36. Qg3 {[%emt 0:02:37]} Qxg3+ {[%emt 0:00:08]} 37. Kxg3 {[%emt 0:00:10]} Be4 {[%emt 0:00:02]} 38. Bd1 {[%emt 0:00:12]} Kf7 {[%emt 0:01:41]} 39. Bf3 {[%emt 0:00:14]} 1-0

[Event "IV Zagreb Open 2019"]
[Site "Zagreb"]
[Date "2019.12.14"]
[Round "9.2"]
[White "Kotronias, Vasilios"]
[Black "Enchev, Ivajlo"]
[Result "1/2-1/2"]
[ECO "C92"]
[WhiteElo "2506"]
[BlackElo "2482"]
[Annotator "ChessBase"]
[PlyCount "21"]
[EventDate "2019.12.07"]
[EventType "swiss"]
[EventCountry "CRO"]
[SourceTitle "playchess.com"]
[Source "ChessBase"]
[SourceQuality "1"]
[TimeControl "40/5400+30:1800+30"]

1. e4 {[%emt 0:00:11]} e5 {[%emt 0:00:00]} 2. Nf3 {[%emt 0:00:04]} Nc6 {[%emt 0:00:00]} 3. Bb5 {[%emt 0:00:03]} a6 {[%emt 0:00:00]} 4. Ba4 {[%emt 0:00:03]} Nf6 {[%emt 0:00:00]} 5. O-O {[%emt 0:00:05]} b5 {[%emt 0:00:02]} 6. Bb3 {[%emt 0:00:03]} Be7 {[%emt 0:00:10]} 7. Re1 {[%emt 0:00:05]} O-O {[%emt 0:00:09]} 8. h3 {[%emt 0:00:03]} d6 {[%emt 0:00:10]} 9. c3 {[%emt 0:00:03]} Bb7 {[%emt 0:00:05]} 10. d4 {[%emt 0:00:03]} Re8 {[%emt 0:00:06]} 11. Ng5 {[%emt 0:00:03]} 1/2-1/2

[Event "IV Zagreb Open 2019"]
[Site "Zagreb"]
[Date "2019.12.14"]
[Round "9.3"]
[White "Rudolf, Michal"]
[Black "Nikolov, Momchil"]
[Result "0-1"]
[ECO "A46"]
[WhiteElo "2328"]
[BlackElo "2533"]
[Annotator "ChessBase"]
[PlyCount "89"]
[EventDate "2019.12.07"]
[EventType "swiss"]
[EventCountry "CRO"]
[SourceTitle "playchess.com"]
[Source "ChessBase"]
[SourceQuality "1"]
[TimeControl "40/5400+30:1800+30"]

1. d4 {[%emt 0:00:09]} Nf6 {[%emt 0:00:00]} 2. Nf3 {[%emt 0:00:23]} e6 {[%emt 0:00:00]} 3. Bg5 {[%emt 0:00:11]} h6 {[%emt 0:00:07]} 4. Bh4 {[%emt 0:00:06]} d6 {[%emt 0:00:12]} 5. Nbd2 {[%emt 0:01:50]} g5 {[%emt 0:00:41]} 6. Bg3 {[%emt 0:00:07]} Nh5 {[%emt 0:00:10]} 7. e4 {[%emt 0:01:06]} Bg7 {[%emt 0:00:15]} 8. c3 {[%emt 0:00:21]} Qe7 {[%emt 0:02:14]} 9. Bd3 {[%emt 0:16:18]} Nd7 {[%emt 0:08:26]} 10. O-O {[%emt 0:03:05]} O-O {[%emt 0:04:44]} 11. Re1 {[%emt 0:08:40]} c5 {[%emt 0:21:09]} 12. Nc4 {[%emt 0:08:22]} Nxg3 {[%emt 0:01:22]} 13. hxg3 {[%emt 0:00:07]} cxd4 {[%emt 0:00:52]} 14. cxd4 {[%emt 0:00:37]} b6 {[%emt 0:04:04]} 15. d5 {[%emt 0:06:03]} Ba6 {[%emt 0:06:15]} 16. dxe6 {[%emt 0:10:57]} fxe6 {[%emt 0:02:12]} 17. Nxd6 {[%emt 0:04:49]} Qxd6 {[%emt 0:13:49]} 18. Bxa6 {[%emt 0:00:07]} Qxd1 {[%emt 0:00:16]} 19. Raxd1 {[%emt 0:00:14]} Nc5 {[%emt 0:00:06]} 20. Bc4 {[%emt 0:00:14]} Bxb2 {[%emt 0:00:09]} 21. Re2 {[%emt 0:04:02]} Bg7 {[%emt 0:03:12]} 22. e5 {[%emt 0:00:55]} Rad8 {[%emt 0:06:39]} 23. Rxd8 {[%emt 0:07:59]} Rxd8 {[%emt 0:00:07]} 24. Rd2 {[%emt 0:00:05]} Rxd2 {[%emt 0:07:16]} 25. Nxd2 {[%emt 0:00:19]} Bxe5 {[%emt 0:00:09]} 26. Nb3 {[%emt 0:00:07]} Ne4 {[%emt 0:02:09]} 27. Bxe6+ {[%emt 0:00:57]} Kf8 {[%emt 0:00:23]} 28. Nc1 {[%emt 0:05:54]} Bd4 {[%emt 0:02:17]} 29. Nd3 {[%emt 0:00:18]} Nxg3 {[%emt 0:00:43]} 30. Kh2 {[%emt 0:01:24]} Ke7 {[%emt 0:02:21]} 31. Bg8 {[%emt 0:02:58]} Ne4 {[%emt 0:05:07]} 32. f3 {[%emt 0:00:34]} Nf6 {[%emt 0:00:31]} 33. Bb3 {[%emt 0:00:19]} b5 {[%emt 0:03:07]} 34. g4 {[%emt 0:06:49]} a5 {[%emt 0:00:37]} 35. a4 {[%emt 0:00:15]} bxa4 {[%emt 0:00:26]} 36. Bxa4 {[%emt 0:00:05]} Nd5 {[%emt 0:00:57]} 37. Kg2 {[%emt 0:01:52]} Nc3 {[%emt 0:01:31]} 38. Bb3 {[%emt 0:00:06]} a4 {[%emt 0:00:20]} 39. Bg8 {[%emt 0:00:05]} Kd6 {[%emt 0:01:05]} 40. f4 {[%emt 0:00:00]} a3 {[%emt 0:00:00]} 41. fxg5 {[%emt 0:06:20]} hxg5 {[%emt 0:01:58]} 42. Nc1 {[%emt 0:01:14]} Be3 {[%emt 0:00:40]} 43. Na2 {[%emt 0:00:32]} Nxa2 {[%emt 0:00:15]} 44. Bxa2 {[%emt 0:00:04]} Ke5 {[%emt 0:00:06]} 45. Kf3 {[%emt 0:00:15]} 0-1